[Event "Titled Tuesday Blitz June 14 Late 2022"]
[White "Moroni, Luca Jr"]
[Black "Adewumi, Tanitoluwa"]
[WhiteFideId "865834"]
[BlackFideId "30966396"]
[WhiteElo "2573"]
[BlackElo "2463"]
[Result "1-0"]
[Round "01"]
[TimeControl "180+1"]
[Date "2022.06.14"]
[WhiteClock "0:00:39"]
[BlackClock "0:00:12"]

1. c4 {[%clk 0:03:00]}  e5 {[%clk 0:02:50]} 2. Nc3 {[%clk 0:03:01]}  Nc6 {[%clk 0:02:50]} 3. e3 {[%clk 0:02:59]}  Nf6 {[%clk 0:02:43]} 4. Qb3 {[%clk 0:02:56]}  g6 {[%clk 0:02:41]} 5. d3 {[%clk 0:02:55]}  Bg7 {[%clk 0:02:41]} 6. g3 {[%clk 0:02:55]}  O-O {[%clk 0:02:40]} 7. Bg2 {[%clk 0:02:56]}  d6 {[%clk 0:02:39]} 8. Nge2 {[%clk 0:02:56]}  Na5 {[%clk 0:02:05]} 9. Qc2 {[%clk 0:02:54]}  Nc6 {[%clk 0:02:00]} 10. a3 {[%clk 0:02:53]}  Be6 {[%clk 0:01:57]} 11. Nd5 {[%clk 0:02:51]}  Rb8 {[%clk 0:01:47]} 12. O-O {[%clk 0:02:50]}  Ne7 {[%clk 0:01:47]} 13. e4 {[%clk 0:02:47]}  c6 {[%clk 0:01:44]} 14. Nxf6+ {[%clk 0:02:46]}  Bxf6 {[%clk 0:01:44]} 15. Bh6 {[%clk 0:02:46]}  Bg7 {[%clk 0:01:41]} 16. Be3 {[%clk 0:02:47]}  b6 {[%clk 0:01:33]} 17. f4 {[%clk 0:02:47]}  d5 {[%clk 0:01:26]} 18. fxe5 {[%clk 0:02:37]}  Bxe5 {[%clk 0:01:25]} 19. Bf4 {[%clk 0:02:12]}  Qd6 {[%clk 0:01:11]} 20. Bxe5 {[%clk 0:01:58]}  Qxe5 {[%clk 0:01:10]} 21. d4 {[%clk 0:01:58]}  Qg7 {[%clk 0:01:11]} 22. Rad1 {[%clk 0:01:54]}  Rbd8 {[%clk 0:01:06]} 23. Nf4 {[%clk 0:01:53]}  Bg4 {[%clk 0:01:01]} 24. Rd2 {[%clk 0:01:52]}  dxe4 {[%clk 0:00:58]} 25. Qxe4 {[%clk 0:01:46]}  Nf5 {[%clk 0:00:58]} 26. d5 {[%clk 0:01:30]}  Rfe8 {[%clk 0:00:58]} 27. dxc6 {[%clk 0:01:05]}  Rc8 {[%clk 0:00:20]} 28. Qd3 {[%clk 0:01:03]}  Ne3 {[%clk 0:00:19]} 29. Re1 {[%clk 0:00:51]}  Nxg2 {[%clk 0:00:17]} 30. Rxe8+ {[%clk 0:00:52]}  Rxe8 {[%clk 0:00:17]} 31. Kxg2 {[%clk 0:00:53]}  Qe5 {[%clk 0:00:13]} 32. Qd4 {[%clk 0:00:39]}  Qxd4 {[%clk 0:00:08]} 33. Rxd4 {[%clk 0:00:40]}  Rc8 {[%clk 0:00:08]} 34. Nd5 {[%clk 0:00:40]}  Kf8 {[%clk 0:00:08]} 35. Rxg4 {[%clk 0:00:40]}  Rxc6 {[%clk 0:00:07]} 36. Rd4 {[%clk 0:00:41]}  Rd6 {[%clk 0:00:07]} 37. Kf3 {[%clk 0:00:41]}  b5 {[%clk 0:00:08]} 38. cxb5 {[%clk 0:00:39]}  Ke8 {[%clk 0:00:06]} 39. a4 {[%clk 0:00:37]}  Kd7 {[%clk 0:00:05]} 40. Nf6+ {[%clk 0:00:35]}  Ke6 {[%clk 0:00:03]} 41. Rxd6+ {[%clk 0:00:35]}  Kxd6 {[%clk 0:00:04]} 42. a5 {[%clk 0:00:35]}  Kc5 {[%clk 0:00:01]} 43. b6 {[%clk 0:00:36]}  axb6 {[%clk 0:00:01]} 44. axb6 {[%clk 0:00:37]}  Kxb6 {[%clk 0:00:02]} 45. Nxh7 {[%clk 0:00:38]}  Kc6 {[%clk 0:00:02]} 46. Ng5 {[%clk 0:00:38]}  f6 {[%clk 0:00:02]} 47. Nh7 {[%clk 0:00:39]}  f5 {[%clk 0:00:03]} 48. Nf8 {[%clk 0:00:39]}  g5 {[%clk 0:00:03]} 49. Ne6 {[%clk 0:00:40]}  f4 {[%clk 0:00:02]} 50. Nxg5 {[%clk 0:00:39]}  Kd5 {[%clk 0:00:03]} 51. gxf4 {[%clk 0:00:39]}  Kd6 {[%clk 0:00:03]} 52. h4 {[%clk 0:00:39]}  Ke7 {[%clk 0:00:04]} 53. h5 {[%clk 0:00:40]}  Kd8 {[%clk 0:00:05]} 54. b4 {[%clk 0:00:40]}  Ke7 {[%clk 0:00:06]} 55. h6 {[%clk 0:00:40]}  Kf6 {[%clk 0:00:07]} 56. h7 {[%clk 0:00:40]}  Kf5 {[%clk 0:00:08]} 57. b5 {[%clk 0:00:40]}  Kg6 {[%clk 0:00:09]} 58. b6 {[%clk 0:00:40]}  Kf5 {[%clk 0:00:09]} 59. b7 {[%clk 0:00:41]}  Kg6 {[%clk 0:00:10]} 60. b8=Q {[%clk 0:00:41]}  Kf5 {[%clk 0:00:11]} 61. Qf8+ {[%clk 0:00:39]}  Kg6 {[%clk 0:00:12]} 62. Qg8+ {[%clk 0:00:39]}  Kf5 {[%clk 0:00:12]} 63. Qf7# {[%clk 0:00:39]} 1-0


[Site "https://www.chess.com"]

[Event "Titled Tuesday Blitz June 14 Late 2022"]
[White "Onslow, Alfie"]
[Black "Yaksin, Oleg"]
[WhiteFideId "436976"]
[BlackFideId "24105880"]
[WhiteElo "1885"]
[BlackElo "2256"]
[Result "0-1"]
[Round "01"]
[TimeControl "180+1"]
[Date "2022.06.15"]
[WhiteClock "0:00:02"]
[BlackClock "0:00:07"]

1. e4 {[%clk 0:02:59]}  c5 {[%clk 0:02:59]} 2. Nc3 {[%clk 0:02:52]}  Nc6 {[%clk 0:02:58]} 3. Bb5 {[%clk 0:02:53]}  g6 {[%clk 0:02:58]} 4. Bxc6 {[%clk 0:02:52]}  dxc6 {[%clk 0:02:58]} 5. f4 {[%clk 0:02:53]}  Bg7 {[%clk 0:02:58]} 6. Nf3 {[%clk 0:02:53]}  Bg4 {[%clk 0:02:57]} 7. O-O {[%clk 0:02:53]}  Nf6 {[%clk 0:02:57]} 8. d3 {[%clk 0:02:52]}  O-O {[%clk 0:02:56]} 9. Qe1 {[%clk 0:02:52]}  Bxf3 {[%clk 0:02:37]} 10. Rxf3 {[%clk 0:02:53]}  e6 {[%clk 0:02:38]} 11. Rh3 {[%clk 0:02:37]}  Nd7 {[%clk 0:02:38]} 12. f5 {[%clk 0:02:34]}  exf5 {[%clk 0:02:38]} 13. Bh6 {[%clk 0:02:34]}  Re8 {[%clk 0:02:34]} 14. Qd2 {[%clk 0:02:32]}  Bd4+ {[%clk 0:02:32]} 15. Kh1 {[%clk 0:02:31]}  fxe4 {[%clk 0:02:29]} 16. Nxe4 {[%clk 0:02:25]}  f5 {[%clk 0:02:29]} 17. Bg5 {[%clk 0:02:08]}  Qc7 {[%clk 0:02:24]} 18. Bf4 {[%clk 0:01:55]}  Be5 {[%clk 0:02:18]} 19. Bxe5 {[%clk 0:01:51]}  Qxe5 {[%clk 0:02:19]} 20. Ng5 {[%clk 0:01:51]}  Nf6 {[%clk 0:02:14]} 21. c3 {[%clk 0:01:48]}  Qe2 {[%clk 0:02:10]} 22. Qc1 {[%clk 0:01:23]}  Rad8 {[%clk 0:02:01]} 23. b4 {[%clk 0:00:48]}  Rxd3 {[%clk 0:01:42]} 24. Rxd3 {[%clk 0:00:35]}  Qxd3 {[%clk 0:01:43]} 25. bxc5 {[%clk 0:00:35]}  Ng4 {[%clk 0:01:29]} 26. h3 {[%clk 0:00:22]}  Ne3 {[%clk 0:01:09]} 27. Qe1 {[%clk 0:00:17]}  Qd5 {[%clk 0:00:58]} 28. Qg3 {[%clk 0:00:17]}  Qxc5 {[%clk 0:00:49]} 29. Re1 {[%clk 0:00:07]}  Qxc3 {[%clk 0:00:45]} 30. Qh4 {[%clk 0:00:07]}  Qg7 {[%clk 0:00:34]} 31. Qf4 {[%clk 0:00:05]}  Qe7 {[%clk 0:00:31]} 32. Nf3 {[%clk 0:00:04]}  Qe4 {[%clk 0:00:22]} 33. Qg5 {[%clk 0:00:03]}  Kg7 {[%clk 0:00:16]} 34. Nh4 {[%clk 0:00:03]}  Kf7 {[%clk 0:00:09]} 35. Qh6 {[%clk 0:00:02]}  Re7 {[%clk 0:00:06]} 36. Qxh7+ {[%clk 0:00:02]}  Ke6 {[%clk 0:00:07]} 37. Qxg6+ {[%clk 0:00:03]}  Kd7 {[%clk 0:00:07]} 38. Qg5 {[%clk 0:00:02]}  f4 {[%clk 0:00:07]} 0-1


[Site "https://www.chess.com"]

[Event "Titled Tuesday Blitz June 14 Late 2022"]
[White "Oparin, Grigoriy"]
[Black "Perera Alfonso, Rene Humberto"]
[WhiteFideId "24125890"]
[BlackFideId "3514722"]
[WhiteElo "2639"]
[BlackElo "2313"]
[Result "1-0"]
[Round "01"]
[TimeControl "180+1"]
[Date "2022.06.14"]
[WhiteClock "0:01:39"]
[BlackClock "0:00:13"]

1. f4 {[%clk 0:03:00]}  b6 {[%clk 0:02:56]} 2. e4 {[%clk 0:02:59]}  Bb7 {[%clk 0:02:55]} 3. Nc3 {[%clk 0:03:00]}  e6 {[%clk 0:02:55]} 4. d4 {[%clk 0:02:57]}  Bb4 {[%clk 0:02:54]} 5. Bd3 {[%clk 0:02:57]}  Nf6 {[%clk 0:02:54]} 6. Qe2 {[%clk 0:02:55]}  d5 {[%clk 0:02:53]} 7. e5 {[%clk 0:02:54]}  Ne4 {[%clk 0:02:50]} 8. Bd2 {[%clk 0:02:54]}  Qh4+ {[%clk 0:02:40]} 9. g3 {[%clk 0:02:54]}  Nxg3 {[%clk 0:02:34]} 10. hxg3 {[%clk 0:02:55]}  Qxh1 {[%clk 0:02:33]} 11. O-O-O {[%clk 0:02:56]}  Nc6 {[%clk 0:02:10]} 12. Nf3 {[%clk 0:02:55]}  Qh3 {[%clk 0:02:10]} 13. Ng5 {[%clk 0:02:43]}  Qxg3 {[%clk 0:01:59]} 14. Be3 {[%clk 0:02:25]}  h6 {[%clk 0:01:17]} 15. Nf3 {[%clk 0:01:57]}  O-O-O {[%clk 0:01:01]} 16. Rg1 {[%clk 0:01:55]}  Qh3 {[%clk 0:01:01]} 17. Nd1 {[%clk 0:01:48]}  f5 {[%clk 0:00:53]} 18. exf6 {[%clk 0:01:43]}  gxf6 {[%clk 0:00:53]} 19. Nf2 {[%clk 0:01:44]}  Qh5 {[%clk 0:00:24]} 20. Bg6 {[%clk 0:01:44]}  Qxf3 {[%clk 0:00:14]} 21. Qxf3 {[%clk 0:01:44]}  f5 {[%clk 0:00:15]} 22. Bf7 {[%clk 0:01:42]}  Rd6 {[%clk 0:00:15]} 23. Nd3 {[%clk 0:01:40]}  Nd8 {[%clk 0:00:14]} 24. Bh5 {[%clk 0:01:40]}  Ba5 {[%clk 0:00:13]} 25. b4 {[%clk 0:01:39]} 1-0


[Site "https://www.chess.com"]

[Event "Titled Tuesday Blitz June 14 Late 2022"]
[White "Ozates, Tuna"]
[Black "Kozak, Adam"]
[WhiteFideId "6354521"]
[BlackFideId "753246"]
[WhiteElo "1887"]
[BlackElo "2459"]
[Result "0-1"]
[Round "01"]
[TimeControl "180+1"]
[Date "2022.06.14"]
[WhiteClock "0:00:02"]
[BlackClock "0:00:16"]

1. e4 {[%clk 0:03:00]}  c5 {[%clk 0:02:59]} 2. Nf3 {[%clk 0:02:59]}  d6 {[%clk 0:02:59]} 3. Bb5+ {[%clk 0:02:59]}  Bd7 {[%clk 0:02:55]} 4. Bxd7+ {[%clk 0:02:59]}  Nxd7 {[%clk 0:02:55]} 5. O-O {[%clk 0:02:59]}  Ngf6 {[%clk 0:02:55]} 6. Qe2 {[%clk 0:03:00]}  Rc8 {[%clk 0:02:53]} 7. b3 {[%clk 0:02:59]}  g6 {[%clk 0:02:50]} 8. Bb2 {[%clk 0:03:00]}  Bg7 {[%clk 0:02:51]} 9. d4 {[%clk 0:03:00]}  cxd4 {[%clk 0:02:50]} 10. Nxd4 {[%clk 0:03:01]}  a6 {[%clk 0:02:51]} 11. c4 {[%clk 0:03:01]}  O-O {[%clk 0:02:51]} 12. Nc3 {[%clk 0:03:01]}  Nc5 {[%clk 0:02:50]} 13. Rad1 {[%clk 0:03:01]}  Ncd7 {[%clk 0:02:45]} 14. Kh1 {[%clk 0:03:00]}  Re8 {[%clk 0:02:44]} 15. f4 {[%clk 0:02:57]}  Qa5 {[%clk 0:02:44]} 16. a3 {[%clk 0:02:20]}  Qc7 {[%clk 0:02:39]} 17. g4 {[%clk 0:02:15]}  Nc5 {[%clk 0:02:38]} 18. g5 {[%clk 0:02:15]}  Nfd7 {[%clk 0:02:35]} 19. Nd5 {[%clk 0:02:14]}  Qd8 {[%clk 0:02:36]} 20. b4 {[%clk 0:02:11]}  Na4 {[%clk 0:02:25]} 21. Ba1 {[%clk 0:02:10]}  Nab6 {[%clk 0:02:26]} 22. f5 {[%clk 0:02:01]}  Nxc4 {[%clk 0:02:22]} 23. fxg6 {[%clk 0:02:01]}  hxg6 {[%clk 0:02:20]} 24. Qg4 {[%clk 0:01:40]}  Nce5 {[%clk 0:02:17]} 25. Qh4 {[%clk 0:01:39]}  Nf8 {[%clk 0:01:59]} 26. Nf3 {[%clk 0:01:31]}  Nfd7 {[%clk 0:01:51]} 27. Nxe5 {[%clk 0:01:20]}  Nxe5 {[%clk 0:01:52]} 28. Bxe5 {[%clk 0:01:10]}  dxe5 {[%clk 0:01:08]} 29. Nf6+ {[%clk 0:00:49]}  exf6 {[%clk 0:01:09]} 30. Rxd8 {[%clk 0:00:49]}  Rexd8 {[%clk 0:01:09]} 31. gxf6 {[%clk 0:00:49]}  Bh8 {[%clk 0:01:09]} 32. Qg5 {[%clk 0:00:40]}  Rc6 {[%clk 0:00:48]} 33. Qxe5 {[%clk 0:00:37]}  Re6 {[%clk 0:00:47]} 34. Qc7 {[%clk 0:00:35]}  Rde8 {[%clk 0:00:47]} 35. Rf4 {[%clk 0:00:19]}  b5 {[%clk 0:00:45]} 36. Qb7 {[%clk 0:00:10]}  Bxf6 {[%clk 0:00:40]} 37. Kg2 {[%clk 0:00:10]}  R8e7 {[%clk 0:00:38]} 38. Qc8+ {[%clk 0:00:09]}  Kg7 {[%clk 0:00:38]} 39. Kf3 {[%clk 0:00:08]}  Re8 {[%clk 0:00:36]} 40. Qd7 {[%clk 0:00:07]}  Rd8 {[%clk 0:00:36]} 41. Qb7 {[%clk 0:00:07]}  Rd3+ {[%clk 0:00:35]} 42. Ke2 {[%clk 0:00:07]}  Rxa3 {[%clk 0:00:35]} 43. h4 {[%clk 0:00:06]}  Rh3 {[%clk 0:00:35]} 44. Qc8 {[%clk 0:00:05]}  Rxh4 {[%clk 0:00:29]} 45. Rxh4 {[%clk 0:00:05]}  Bxh4 {[%clk 0:00:29]} 46. Ke3 {[%clk 0:00:05]}  Be7 {[%clk 0:00:30]} 47. Qc3+ {[%clk 0:00:04]}  Bf6 {[%clk 0:00:30]} 48. Qb3 {[%clk 0:00:04]}  Rc6 {[%clk 0:00:26]} 49. Qd5 {[%clk 0:00:04]}  Re6 {[%clk 0:00:24]} 50. Kf3 {[%clk 0:00:03]}  Be5 {[%clk 0:00:22]} 51. Qd3 {[%clk 0:00:03]}  Rf6+ {[%clk 0:00:20]} 52. Ke3 {[%clk 0:00:03]}  g5 {[%clk 0:00:18]} 53. Qd5 {[%clk 0:00:03]}  Re6 {[%clk 0:00:18]} 54. Qd8 {[%clk 0:00:03]}  Bf6 {[%clk 0:00:17]} 55. Qd5 {[%clk 0:00:04]}  Be7 {[%clk 0:00:17]} 56. Qf5 {[%clk 0:00:04]}  Rg6 {[%clk 0:00:14]} 57. e5 {[%clk 0:00:04]}  Bxb4 {[%clk 0:00:14]} 58. Ke4 {[%clk 0:00:04]}  Be7 {[%clk 0:00:14]} 59. Kd5 {[%clk 0:00:04]}  g4 {[%clk 0:00:15]} 60. Qf4 {[%clk 0:00:03]}  g3 {[%clk 0:00:15]} 61. Qf1 {[%clk 0:00:01]}  g2 {[%clk 0:00:15]} 62. Qg1 {[%clk 0:00:02]}  Bh4 {[%clk 0:00:15]} 63. Ke4 {[%clk 0:00:02]}  Bf2 {[%clk 0:00:15]} 64. Qxf2 {[%clk 0:00:02]}  g1=Q {[%clk 0:00:16]} 0-1


[Site "https://www.chess.com"]

[Event "Titled Tuesday Blitz June 14 Late 2022"]
[White "Pulpan, Jakub"]
[Black "Lorenzo De La Riva, Lazaro"]
[WhiteFideId "302759"]
[BlackFideId "2268809"]
[WhiteElo "2495"]
[BlackElo "2325"]
[Result "0-1"]
[Round "01"]
[TimeControl "180+1"]
[Date "2022.06.15"]
[WhiteClock "0:00:11"]
[BlackClock "0:00:17"]

1. d4 {[%clk 0:02:38]}  d5 {[%clk 0:02:58]} 2. Bg5 {[%clk 0:02:37]}  f6 {[%clk 0:02:57]} 3. Bf4 {[%clk 0:02:33]}  Nc6 {[%clk 0:02:54]} 4. Nf3 {[%clk 0:02:29]}  Bg4 {[%clk 0:02:53]} 5. Nbd2 {[%clk 0:02:28]}  e6 {[%clk 0:02:52]} 6. c4 {[%clk 0:02:20]}  dxc4 {[%clk 0:02:49]} 7. e3 {[%clk 0:02:13]}  Bd6 {[%clk 0:02:45]} 8. Bxd6 {[%clk 0:02:11]}  cxd6 {[%clk 0:02:40]} 9. Bxc4 {[%clk 0:02:11]}  d5 {[%clk 0:02:40]} 10. Bd3 {[%clk 0:02:06]}  Nge7 {[%clk 0:02:38]} 11. h3 {[%clk 0:02:06]}  Bh5 {[%clk 0:02:37]} 12. Qb1 {[%clk 0:02:03]}  f5 {[%clk 0:02:34]} 13. b4 {[%clk 0:01:55]}  Bxf3 {[%clk 0:02:32]} 14. Nxf3 {[%clk 0:01:54]}  O-O {[%clk 0:02:29]} 15. O-O {[%clk 0:01:53]}  Ng6 {[%clk 0:02:19]} 16. Rc1 {[%clk 0:01:52]}  Qd6 {[%clk 0:02:18]} 17. a3 {[%clk 0:01:48]}  Rac8 {[%clk 0:02:15]} 18. Ra2 {[%clk 0:01:48]}  Nce7 {[%clk 0:02:14]} 19. Rac2 {[%clk 0:01:47]}  Rxc2 {[%clk 0:02:07]} 20. Rxc2 {[%clk 0:01:48]}  Rc8 {[%clk 0:02:05]} 21. Rxc8+ {[%clk 0:01:48]}  Nxc8 {[%clk 0:02:05]} 22. Qc2 {[%clk 0:01:49]}  Nb6 {[%clk 0:02:05]} 23. g3 {[%clk 0:01:41]}  Kf8 {[%clk 0:01:42]} 24. h4 {[%clk 0:01:36]}  Ke8 {[%clk 0:01:40]} 25. Ng5 {[%clk 0:01:32]}  Nf8 {[%clk 0:01:36]} 26. Qe2 {[%clk 0:01:29]}  g6 {[%clk 0:01:34]} 27. h5 {[%clk 0:01:25]}  Qe7 {[%clk 0:01:16]} 28. Nf3 {[%clk 0:01:18]}  Kd8 {[%clk 0:01:13]} 29. Ne5 {[%clk 0:01:13]}  Nbd7 {[%clk 0:01:11]} 30. Nf3 {[%clk 0:01:13]}  g5 {[%clk 0:01:05]} 31. Bb5 {[%clk 0:01:12]}  g4 {[%clk 0:01:03]} 32. Ne1 {[%clk 0:01:03]}  Nf6 {[%clk 0:01:00]} 33. h6 {[%clk 0:01:02]}  a6 {[%clk 0:00:54]} 34. Ba4 {[%clk 0:01:01]}  Ne4 {[%clk 0:00:47]} 35. Bc2 {[%clk 0:00:59]}  Ng5 {[%clk 0:00:47]} 36. Qd2 {[%clk 0:00:42]}  Nd7 {[%clk 0:00:37]} 37. a4 {[%clk 0:00:35]}  Nb6 {[%clk 0:00:35]} 38. a5 {[%clk 0:00:28]}  Nc4 {[%clk 0:00:34]} 39. Qc3 {[%clk 0:00:28]}  Qc7 {[%clk 0:00:29]} 40. Nd3 {[%clk 0:00:24]}  Nf3+ {[%clk 0:00:28]} 41. Kh1 {[%clk 0:00:24]}  Qf7 {[%clk 0:00:26]} 42. Nf4 {[%clk 0:00:15]}  Qf6 {[%clk 0:00:26]} 43. Kg2 {[%clk 0:00:14]}  Qxh6 {[%clk 0:00:25]} 44. Kf1 {[%clk 0:00:15]}  Qh1+ {[%clk 0:00:23]} 45. Ke2 {[%clk 0:00:15]}  Ng1+ {[%clk 0:00:23]} 46. Kf1 {[%clk 0:00:10]}  Nh3+ {[%clk 0:00:22]} 47. Ke2 {[%clk 0:00:10]}  Qh2 {[%clk 0:00:22]} 48. Nxe6+ {[%clk 0:00:10]}  Ke7 {[%clk 0:00:20]} 49. Nf4 {[%clk 0:00:09]}  Qxf2+ {[%clk 0:00:19]} 50. Kd1 {[%clk 0:00:09]}  Nxf4 {[%clk 0:00:15]} 51. exf4 {[%clk 0:00:10]}  Ne3+ {[%clk 0:00:15]} 52. Kc1 {[%clk 0:00:10]}  Qxc2+ {[%clk 0:00:13]} 53. Qxc2 {[%clk 0:00:11]}  Nxc2 {[%clk 0:00:14]} 54. Kxc2 {[%clk 0:00:12]}  h5 {[%clk 0:00:13]} 55. Kd3 {[%clk 0:00:10]}  Kd6 {[%clk 0:00:13]} 56. Kc3 {[%clk 0:00:06]}  Kc6 {[%clk 0:00:14]} 57. Kc2 {[%clk 0:00:05]}  Kb5 {[%clk 0:00:13]} 58. Kb3 {[%clk 0:00:05]}  h4 {[%clk 0:00:14]} 59. gxh4 {[%clk 0:00:05]}  g3 {[%clk 0:00:15]} 60. h5 {[%clk 0:00:06]}  g2 {[%clk 0:00:15]} 61. h6 {[%clk 0:00:07]}  g1=Q {[%clk 0:00:16]} 62. h7 {[%clk 0:00:08]}  Qg7 {[%clk 0:00:16]} 63. Ka2 {[%clk 0:00:08]}  Qxh7 {[%clk 0:00:16]} 64. Ka3 {[%clk 0:00:09]}  Qh4 {[%clk 0:00:17]} 65. Kb2 {[%clk 0:00:10]}  Qxf4 {[%clk 0:00:17]} 66. Ka2 {[%clk 0:00:11]}  Qxd4 {[%clk 0:00:17]} 67. Kb1 {[%clk 0:00:11]}  Qc4 {[%clk 0:00:17]} 68. Ka1 {[%clk 0:00:11]}  f4 {[%clk 0:00:17]} 0-1


[Site "https://www.chess.com"]

[Event "Titled Tuesday Blitz June 14 Late 2022"]
[White "Romero Ruscalleda, Josep"]
[Black "Araujo Sanchez, Josue"]
[WhiteFideId "2231859"]
[BlackFideId "6416896"]
[WhiteElo "2343"]
[BlackElo "2339"]
[Result "1-0"]
[Round "01"]
[TimeControl "180+1"]
[Date "2022.06.15"]
[WhiteClock "0:00:04"]
[BlackClock "0:00:03"]

1. e4 {[%clk 0:02:59]}  c5 {[%clk 0:02:58]} 2. c3 {[%clk 0:02:59]}  d5 {[%clk 0:02:56]} 3. exd5 {[%clk 0:02:59]}  Qxd5 {[%clk 0:02:56]} 4. d4 {[%clk 0:02:59]}  g6 {[%clk 0:02:42]} 5. Nf3 {[%clk 0:02:58]}  Bg7 {[%clk 0:02:41]} 6. dxc5 {[%clk 0:02:57]}  Qxc5 {[%clk 0:02:40]} 7. Be3 {[%clk 0:02:56]}  Qc7 {[%clk 0:02:40]} 8. Na3 {[%clk 0:02:54]}  Bd7 {[%clk 0:02:19]} 9. Qb3 {[%clk 0:02:45]}  Nf6 {[%clk 0:02:15]} 10. Nb5 {[%clk 0:02:29]}  Bxb5 {[%clk 0:02:15]} 11. Bxb5+ {[%clk 0:02:28]}  Nc6 {[%clk 0:02:14]} 12. O-O {[%clk 0:02:28]}  O-O {[%clk 0:02:14]} 13. Rfe1 {[%clk 0:02:26]}  a6 {[%clk 0:02:05]} 14. Bd3 {[%clk 0:02:19]}  b5 {[%clk 0:01:51]} 15. a4 {[%clk 0:02:17]}  Na5 {[%clk 0:01:50]} 16. Qc2 {[%clk 0:02:15]}  Nc4 {[%clk 0:01:47]} 17. Bd4 {[%clk 0:02:12]}  Rfd8 {[%clk 0:01:41]} 18. axb5 {[%clk 0:02:10]}  axb5 {[%clk 0:01:40]} 19. Rxa8 {[%clk 0:02:02]}  Rxa8 {[%clk 0:01:39]} 20. Ne5 {[%clk 0:01:56]}  Ra2 {[%clk 0:01:29]} 21. Qc1 {[%clk 0:01:23]}  e6 {[%clk 0:01:14]} 22. Bb1 {[%clk 0:01:18]}  Ra1 {[%clk 0:01:09]} 23. Nxc4 {[%clk 0:00:57]}  bxc4 {[%clk 0:01:02]} 24. h3 {[%clk 0:00:57]}  Nd5 {[%clk 0:00:56]} 25. Bxg7 {[%clk 0:00:48]}  Kxg7 {[%clk 0:00:57]} 26. Qd2 {[%clk 0:00:46]}  Qf4 {[%clk 0:00:55]} 27. Qe2 {[%clk 0:00:41]}  Ra4 {[%clk 0:00:28]} 28. g3 {[%clk 0:00:40]}  Qf6 {[%clk 0:00:27]} 29. Kg2 {[%clk 0:00:39]}  h5 {[%clk 0:00:26]} 30. h4 {[%clk 0:00:37]}  Nb6 {[%clk 0:00:19]} 31. Be4 {[%clk 0:00:30]}  Ra5 {[%clk 0:00:18]} 32. Qe3 {[%clk 0:00:26]}  Nd5 {[%clk 0:00:18]} 33. Qd2 {[%clk 0:00:21]}  Rb5 {[%clk 0:00:17]} 34. Re2 {[%clk 0:00:19]}  Ne7 {[%clk 0:00:17]} 35. Qd6 {[%clk 0:00:16]}  Nf5 {[%clk 0:00:16]} 36. Bxf5 {[%clk 0:00:16]}  Qxf5 {[%clk 0:00:15]} 37. Qd4+ {[%clk 0:00:16]}  Qf6 {[%clk 0:00:11]} 38. Qxc4 {[%clk 0:00:16]}  Rd5 {[%clk 0:00:12]} 39. Qe4 {[%clk 0:00:15]}  Rd1 {[%clk 0:00:11]} 40. b4 {[%clk 0:00:14]}  Qxc3 {[%clk 0:00:10]} 41. Qe5+ {[%clk 0:00:12]}  Qxe5 {[%clk 0:00:11]} 42. Rxe5 {[%clk 0:00:13]}  Rb1 {[%clk 0:00:11]} 43. Rb5 {[%clk 0:00:13]}  Kf6 {[%clk 0:00:11]} 44. Rb7 {[%clk 0:00:13]}  Rb3 {[%clk 0:00:11]} 45. Kf1 {[%clk 0:00:12]}  Rb2 {[%clk 0:00:11]} 46. Kg2 {[%clk 0:00:12]}  e5 {[%clk 0:00:11]} 47. b5 {[%clk 0:00:11]}  Ke6 {[%clk 0:00:11]} 48. b6 {[%clk 0:00:10]}  e4 {[%clk 0:00:11]} 49. Kf1 {[%clk 0:00:09]}  Kf6 {[%clk 0:00:10]} 50. Ke1 {[%clk 0:00:09]}  Ke6 {[%clk 0:00:07]} 51. Rb8 {[%clk 0:00:09]}  Ke7 {[%clk 0:00:06]} 52. b7 {[%clk 0:00:06]}  Kf6 {[%clk 0:00:05]} 53. Kd1 {[%clk 0:00:05]}  Rb3 {[%clk 0:00:05]} 54. Kc2 {[%clk 0:00:04]}  Rb4 {[%clk 0:00:05]} 55. Kc3 {[%clk 0:00:04]}  Rb1 {[%clk 0:00:04]} 56. Kd4 {[%clk 0:00:05]}  Kf5 {[%clk 0:00:04]} 57. Ke3 {[%clk 0:00:02]}  Rb3+ {[%clk 0:00:04]} 58. Ke2 {[%clk 0:00:02]}  Rb2+ {[%clk 0:00:04]} 59. Ke3 {[%clk 0:00:02]}  Rb3+ {[%clk 0:00:05]} 60. Ke2 {[%clk 0:00:03]}  Rb2+ {[%clk 0:00:05]} 61. Ke3 {[%clk 0:00:03]}  Rb6 {[%clk 0:00:06]} 62. Ke2 {[%clk 0:00:04]}  f6 {[%clk 0:00:07]} 63. Ke3 {[%clk 0:00:03]}  Rb2 {[%clk 0:00:07]} 64. Kd4 {[%clk 0:00:03]}  Rb3 {[%clk 0:00:08]} 65. Kd5 {[%clk 0:00:02]}  Rb4 {[%clk 0:00:05]} 66. Kc5 {[%clk 0:00:02]}  Rb1 {[%clk 0:00:05]} 67. Kc6 {[%clk 0:00:03]}  Kg4 {[%clk 0:00:05]} 68. Rf8 {[%clk 0:00:02]}  Rc1+ {[%clk 0:00:03]} 69. Kb6 {[%clk 0:00:02]}  Rb1+ {[%clk 0:00:04]} 70. Kc7 {[%clk 0:00:02]}  Kf3 {[%clk 0:00:04]} 71. Rxf6+ {[%clk 0:00:02]}  Kg4 {[%clk 0:00:04]} 72. Rb6 {[%clk 0:00:03]}  Rc1+ {[%clk 0:00:03]} 73. Kd6 {[%clk 0:00:03]}  Rd1+ {[%clk 0:00:03]} 74. Ke5 {[%clk 0:00:04]}  Kf3 {[%clk 0:00:03]} 75. b8=Q {[%clk 0:00:04]}  Kxf2 {[%clk 0:00:03]} 76. Qf8+ {[%clk 0:00:04]}  Kxg3 {[%clk 0:00:03]} 77. Rb3+ {[%clk 0:00:04]}  Kxh4 {[%clk 0:00:03]} 78. Qf4# {[%clk 0:00:04]} 1-0


[Site "https://www.chess.com"]

[Event "Titled Tuesday Blitz June 14 Late 2022"]
[White "Sadhwani, Raunak"]
[Black "Petrovic, Aleksa"]
[WhiteFideId "35093487"]
[BlackFideId "967629"]
[WhiteElo "2616"]
[BlackElo "2117"]
[Result "1-0"]
[Round "01"]
[TimeControl "180+1"]
[Date "2022.06.14"]
[WhiteClock "0:02:30"]
[BlackClock "0:00:36"]

1. d4 {[%clk 0:03:00]}  Nf6 {[%clk 0:02:58]} 2. Nf3 {[%clk 0:03:01]}  e6 {[%clk 0:02:58]} 3. Bf4 {[%clk 0:03:01]}  Bd6 {[%clk 0:02:55]} 4. e3 {[%clk 0:03:01]}  O-O {[%clk 0:02:52]} 5. Bxd6 {[%clk 0:03:01]}  cxd6 {[%clk 0:02:52]} 6. Nbd2 {[%clk 0:03:01]}  Nc6 {[%clk 0:02:51]} 7. Bd3 {[%clk 0:03:00]}  d5 {[%clk 0:02:50]} 8. O-O {[%clk 0:02:59]}  d6 {[%clk 0:02:50]} 9. e4 {[%clk 0:02:58]}  dxe4 {[%clk 0:02:46]} 10. Nxe4 {[%clk 0:02:59]}  Nxe4 {[%clk 0:02:43]} 11. Bxe4 {[%clk 0:02:59]}  d5 {[%clk 0:02:44]} 12. Bd3 {[%clk 0:03:00]}  Bd7 {[%clk 0:02:39]} 13. c3 {[%clk 0:03:00]}  Qf6 {[%clk 0:02:35]} 14. Re1 {[%clk 0:03:00]}  Rfe8 {[%clk 0:02:31]} 15. Qe2 {[%clk 0:03:00]}  Re7 {[%clk 0:02:26]} 16. Bb5 {[%clk 0:02:50]}  Nb8 {[%clk 0:02:11]} 17. a4 {[%clk 0:02:48]}  a6 {[%clk 0:02:09]} 18. Bd3 {[%clk 0:02:48]}  Nc6 {[%clk 0:02:08]} 19. a5 {[%clk 0:02:49]}  Rae8 {[%clk 0:02:07]} 20. Ne5 {[%clk 0:02:49]}  Nxe5 {[%clk 0:02:07]} 21. dxe5 {[%clk 0:02:50]}  Qg5 {[%clk 0:02:01]} 22. g3 {[%clk 0:02:48]}  Bc6 {[%clk 0:01:58]} 23. f4 {[%clk 0:02:46]}  Qh6 {[%clk 0:01:58]} 24. Qf2 {[%clk 0:02:46]}  g5 {[%clk 0:01:55]} 25. fxg5 {[%clk 0:02:37]}  Qxg5 {[%clk 0:01:56]} 26. Qd4 {[%clk 0:02:38]}  Kh8 {[%clk 0:01:52]} 27. Rf1 {[%clk 0:02:38]}  Rg8 {[%clk 0:01:48]} 28. Rf4 {[%clk 0:02:38]}  Bb5 {[%clk 0:01:36]} 29. Bxb5 {[%clk 0:02:36]}  axb5 {[%clk 0:01:37]} 30. Raf1 {[%clk 0:02:36]}  Rc7 {[%clk 0:01:31]} 31. Rxf7 {[%clk 0:02:30]}  Rxf7 {[%clk 0:01:31]} 32. Rxf7 {[%clk 0:02:31]}  Qc1+ {[%clk 0:01:32]} 33. Kg2 {[%clk 0:02:32]}  Qxb2+ {[%clk 0:01:28]} 34. Kh3 {[%clk 0:02:31]}  Qc2 {[%clk 0:00:51]} 35. Qh4 {[%clk 0:02:30]}  Qg6 {[%clk 0:00:45]} 36. Qf6+ {[%clk 0:02:31]}  Qxf6 {[%clk 0:00:44]} 37. exf6 {[%clk 0:02:31]}  Rc8 {[%clk 0:00:36]} 38. Rxb7 {[%clk 0:02:30]}  Kg8 {[%clk 0:00:36]} 39. a6 {[%clk 0:02:30]} 1-0


[Site "https://www.chess.com"]